{"text_format":"1","workbook":"xlsx","n_sheets":1,"sheets":["Bon de Commande"],"not_rendered":{"charts":0,"images":1,"macros":1,"external_links":0,"defined_names":2,"comments":0,"pivot_tables":0},"unopened":[],"bounds":{"document_bytes":16777216,"sheet_cells":100000,"rows_first":2000,"rows_last":500,"rows_between":2000,"halvings":0,"cell_chars":16384,"cell_head_chars":4096},"cells_cut":0,"cells_raw":0,"read":"whole","date_system":"1900"}

{"sheet":"Bon de Commande","index":0,"n_rows":66,"n_cols":32,"rows_kept":66,"cut":false,"hidden":false,"merged":[[6,2,6,4],[7,2,7,4],[8,2,8,4],[9,2,9,4],[1,0,1,13],[3,7,3,13],[4,7,4,13],[5,7,5,13],[6,7,6,13],[3,2,3,4],[4,2,4,4],[5,2,5,4],[8,7,8,13],[9,7,9,13],[7,7,7,13],[44,1,44,8],[36,2,36,6],[35,2,35,6],[30,2,30,6],[11,7,11,13],[25,2,25,6],[26,2,26,6],[27,2,27,6],[28,2,28,6],[29,2,29,6],[16,2,16,6],[24,1,24,8],[18,2,18,6],[21,2,21,6],[22,2,22,6],[23,2,23,6],[10,7,10,13],[12,7,12,13],[15,1,15,8],[50,1,50,2],[31,2,31,6],[32,2,32,6],[34,2,34,6],[33,2,33,6],[45,2,45,6],[46,2,46,6],[38,2,38,6],[39,2,39,6],[40,2,40,6],[41,2,41,6],[43,2,43,6],[37,1,37,8],[19,2,19,6],[20,2,20,6],[42,2,42,6],[57,2,57,8],[0,0,0,13],[93,2,93,9],[95,2,95,9],[65,2,65,9],[73,3,73,7],[76,2,76,9],[83,2,83,9],[72,3,72,7],[10,2,10,4],[11,2,11,4],[71,3,71,7],[70,3,70,7],[17,1,17,8],[14,2,14,6]]}
["BON DE COMMANDE",null,null,null,null,null,null,null,null,null,null,null,null,null,null,null,null,null,null,null,null,null,null,null,null,null,null,"NB - New Brunswick"]
["Les titres sont seulement disponibles du siège social",null,null,null,null,null,null,null,null,null,null,null,null,null,null,null,null,null,null,null,null,null,null,null,null,null,null,"NL - Newfoundland and Labrador"]
[]
["Expédiez a (nom du site):",null,null,null,null,"Veuillez facture:",null,null,null,null,null,null,null,null,null,null,null,null,null,null,null,null,null,null,null,null,null,"NU - Nunavut"]
["Attention:",null,null,null,null,"Attention:",null,null,null,null,null,null,null,null,null,null,null,null,null,null,null,null,null,null,null,null,null,"ON - Ontario"]
["Adresse:",null,null,null,null,"Address:",null,null,null,null,null,null,null,null,null,null,null,null,null,null,null,null,null,null,null,null,null,"PE - Prince Edward Island"]
["Ville:",null,null,null,null,"Ville:",null,null,null,null,null,null,null,null,null,null,null,null,null,null,null,null,null,null,null,null,null,"QC - Quebec"]
["Province:",null,null,null,null,"Province:",null,null,null,null,null,null,null,null,null,null,null,null,null,null,null,null,null,null,null,null,null,"SK - Saskatchewan"]
["Code postal:",null,null,null,null,"Code Postal:",null,null,null,null,null,null,null,null,null,null,null,null,null,null,null,null,null,null,null,null,null,"YK - Yukon"]
["Téléphone:",null,null,null,null,"Téléphone:"]
["Telecopieur:",null,null,null,null,"Télécopieur:",null,null,null,null,null,null,null,null,null,null,null,null,null,null,null,null,null,null,null,null,null,"Home"]
["Courriel:",null,null,null,null,"Numéro de la Facture:",null,null,null,null,null,null,null,null,null,null,null,null,null,null,null,null,null,null,null,null,null,"School"]
[null,null,null,null,null,"Courriel:",null,null,null,null,null,null,null,null,null,null,null,null,null,null,null,null,null,null,null,null,null,"Agency"]
[]
[null,"Quantité","Titre",null,null,null,null,"Prix unitaire","Total",null,null,null,null,null,null,null,null,null,null,null,null,null,null,null,"Other"]
[null,"DISPONSIBLE AUX DIRECTEURS ET DIRECTRICES SEULEMENT"]
[null,null,"Certificate D'Engagement",null,null,null,null,0.75,{"$f":"B17*H17","v":0}]
[null,"ADMINISTRATION"]
[null,null,"Étiquette Pour Nom",null,null,null,null,0.25,{"$f":"B19*H19","v":0}]
[null,null,"Collant Du Logo Rainbows",null,null,null,null,0.25,0]
[null,null,"Les Enfants Sont un Cadeau",null,null,null,null,0.6,0]
[null,null,"La Guérison est Possible",null,null,null,null,0.6,0]
[null,null,"Symphonie en Solitaire",null,null,null,null,5,0]
[null,null,"Manuel des Politiques et Lignes Directrices",null,null,null,null,3.25,0]
[null,"MATÉRIAUX DE PROGRAMME"]
[null,null,"Manuel du Cooronnateur et de la Coordonnatrice",null,null,null,null,14,{"$f":"B26*H26","v":0}]
[null,null,"Module d'Écoute",null,null,null,null,15.5,0]
[null,null,"Module de Composantes",null,null,null,null,18,0,null,null,null,null,null,null,null,null,null,null,null,null,null,null,null,null,null,null,null,null,"AB - Alberta"]
[null,null,"Journal #1 (+Cadre à Photo)",null,null,null,null,13.5,0,null,null,null,null,null,null,null,null,null,null,null,null,null,null,null,null,null,null,null,null,"BC - British Columbia"]
[null,null,"Journal #2 (+Emblème Famille)",null,null,null,null,13.5,0,null,null,null,null,null,null,null,null,null,null,null,null,null,null,null,null,null,null,null,null,"MB - Manitoba"]
[null,null,"Journal #3 (+Casse-Tête et Fanion)",null,null,null,null,13.5,0,null,null,null,null,null,null,null,null,null,null,null,null,null,null,null,null,null,null,null,null,"NB - New Brunswick"]
[null,null,"Journal #4 (+Lampe de Poche)",null,null,null,null,13.5,0,null,null,null,null,null,null,null,null,null,null,null,null,null,null,null,null,null,null,null,null,"NL - Newfoundland and Labrador"]
[null,null,"Vivre en Famille",null,null,null,null,7,0,null,null,null,null,null,null,null,null,null,null,null,null,null,null,null,null,null,null,null,null,"NS - Nova Scotia"]
[null,null,"Nos Sentiments, Ils Sont Bien La",null,null,null,null,7,0,null,null,null,null,null,null,null,null,null,null,null,null,null,null,null,null,null,null,null,null,"NT - Northwest Territories"]
[null,null,"Il Faut due Temps",null,null,null,null,7,0,null,null,null,null,null,null,null,null,null,null,null,null,null,null,null,null,null,null,null,null,"NU - Nunavut"]
[null,null,"Ça Y Est",null,null,null,null,7,0,null,null,null,null,null,null,null,null,null,null,null,null,null,null,null,null,null,null,null,null,"ON - Ontario"]
[null,null,"Parlons de la Mort",null,null,null,null,7,0,null,null,null,null,null,null,null,null,null,null,null,null,null,null,null,null,null,null,null,null,"PE - Prince Edward Island"]
[null,"MATÉRIAUX DE PROGRAMME - a continué"]
[null,null,"Place-le Ici (Jeu) - Niveau 2",null,null,null,null,30,{"$f":"B39*H39","v":0},null,null,null,null,null,null,null,null,null,null,null,null,null,null,null,null,null,null,null,null,"QC - Quebec"]
[null,null,"Mots Croisés (Jeu) Niveau 3 (Emsemble de 5 feiulles)",null,null,null,null,2,0,null,null,null,null,null,null,null,null,null,null,null,null,null,null,null,null,null,null,null,null,"SK - Saskatchewan"]
[null,null,"Hauts et Bas (Jeu) Niveau 3-4",null,null,null,null,22.5,0]
[null,null,"Que Faire (Jeu) -Niveau 4",null,null,null,null,25,0,null,null,null,null,null,null,null,null,null,null,null,null,null,null,null,null,null,null,null,null,"YT - Yukon"]
[null,null,"Dés Des Sentiments (Jeu) - Niveau 4",null,null,null,null,20,0]
[null,null,"Dés Des Sentiments - feuilles de marque (ensemble de 2)",null,null,null,null,4.5,0]
[null,"SOUVENIRS"]
[null,null,"Rainbows - Paquet de Crayons (5)",null,null,null,null,3,{"$f":"B46*H46","v":0}]
[null,null,"Stylo Rainbows",null,null,null,null,2.5,{"$f":"B47*H47","v":0}]
[null,null,null,null,null,null,null,"SOUS-TOTAL",{"$f":"SUM(I17:I47)","v":0}]
[null,"FRAIS D'ENVOI ET DE MANUTENTION"]
[null,"Cliquez ci-dessous pour frais de port",null,null,"Frais d'envoi et de manutention - a gauche",null,null,null,{"$f":"IF(I48<=50,AF57,IF(I48<=100,AF58,IF(I48<=200,AF59,IF(I48<=300,AF60,IF(I48<=500,AF61,IF(I48<=700,AF62,IF(I48<=900,AF63,IF(I48<=1100,AF64,IF(I48<=1300,AF65,IF(139<1300.01,IF(I48<=1300.01,AF66)))))))))))","v":17}]
[null,"$1.00 - $50.00= $17.00",null,null,null,null,"Taxes applicables"]
[null,null,null,null,null,null,"GRAND TOTAL",null,{"$f":"SUM(I48+I50+I51+B54*(1*30))","v":17}]
[]
[]
[]
[null,null,null,"Facture pour le paiement joint à l'expédition"]
[null,null,null,"Les prix peuvent changes san avertissement",null,null,null,null,null,null,null,null,null,null,null,null,null,null,null,null,null,null,null,null,null,null,null,null,null,"$1.00 - $50.00= $17.00",null,17]
[null,null,"S'il vous plaît permettre un minimum de 3 semaines pour le traitement/expédition",null,null,null,null,null,null,null,null,null,null,null,null,null,null,null,null,null,null,null,{"$f":"IF($I$48,\"<50.01\",AF57)","v":17},null,null,null,null,null,null,"$50.01 - $100.00 = $20.00",null,20]
[null,null,null,null,null,null,null,null,null,null,null,null,null,null,null,null,null,null,null,null,null,null,null,null,null,null,null,null,null,"$100.01 - $200.00 = $23.00",null,23]
[null,null,null,null,null,null,null,null,null,null,null,null,null,null,null,null,null,null,null,null,null,null,null,null,null,null,null,null,null,"$200.01 - $300.00 = $27.00",null,27]
[null,null,null,null,null,null,null,null,null,null,null,null,null,null,null,null,null,null,null,null,null,null,null,null,null,null,null,null,null,"$300.001- $500.00 = $34.00",null,34]
[null,null,null,null,null,null,null,null,null,null,null,null,null,null,null,null,null,null,null,null,null,null,null,null,null,null,null,null,null,"$500.01 - $700.00 = $40.00",null,40]
[null,null,null,null,null,null,null,null,null,null,null,null,null,null,null,null,null,null,null,null,null,null,null,null,null,null,null,null,null,"$700.01 - $900.00 = $42.5",null,42.5]
[null,null,null,null,null,null,null,null,null,null,null,null,null,null,null,null,null,null,null,null,null,null,null,null,null,null,null,null,null,"$900.01 - $1100 = 50.00",null,50]
[null,null,null,null,null,null,null,null,null,null,null,null,null,null,null,null,null,null,null,null,null,null,null,null,null,null,null,null,null,"$1100.01 - $1300 = $57.50",null,57.5]
[null,null,null,null,null,null,null,null,null,null,null,null,null,null,null,null,null,null,null,null,null,null,null,null,null,null,null,null,null,"$1300.01 - $1500.00 = $65.00",null,65]